{"text_format":"1","workbook":"xlsx","n_sheets":3,"sheets":["วิธีการใช้งาน","Form","Data"],"not_rendered":{"charts":0,"images":2,"macros":1,"external_links":0,"defined_names":2,"comments":0,"pivot_tables":0},"unopened":[],"bounds":{"document_bytes":16777216,"sheet_cells":100000,"rows_first":2000,"rows_last":500,"rows_between":2000,"halvings":0,"cell_chars":16384,"cell_head_chars":4096},"cells_cut":0,"cells_raw":0,"read":"whole","date_system":"1900"}

{"sheet":"วิธีการใช้งาน","index":0,"n_rows":13,"n_cols":9,"rows_kept":13,"cut":false,"hidden":false,"merged":[]}
[]
[null,"ขั้นตอนในการทำ"]
[null,"1. สร้าง Folder ชื่อ \"Pic-Progress\" ใน Drive C:"]
[null,"2. copy รูปที่ต้องการแทรกหรือใช้งานใน Drive  C:\\Pic-Progress",null,null,null,null,null,null,"( นามสกุลรูปต้องเป็น *.jpg )"]
[null,"3. ตั้งชื่อ File เรื่องตามลำดับที่ต้องการ"]
[]
[null,"4. พิมพ์รายละเอียดและข้อมูลต่างๆ ของรูป"]
[]
[null,"5. ไปที่ Sheet 1 กดปุ่ม เพื่อเริ่มทำงานดังนี้"]
[null,"ปุ่ม",1,"ลบรูปทั้งหมด",null,null,null,"ห้ามลบ หรือ ขยับ Row และ Column เด็ดขาด"]
[null,"ปุ่ม",2,"แทรกรูป Before",null,null,null,"พิมพ์ข้อมูลเฉพาะที่อยู่ในช่อง สีเขียว"]
[null,"ปุ่ม",3,"แทรกรูป After",null,null,null,"ทำได้สูงสุด 99รูป"]
[null,"ปุ่ม",4,"แทรกรูป Before + After"]

{"sheet":"Form","index":1,"n_rows":108,"n_cols":18,"rows_kept":108,"cut":false,"hidden":false,"merged":[[6,11,7,11],[3,13,3,14],[6,0,7,0],[6,1,7,1],[6,2,7,2],[6,3,7,3],[6,4,7,4],[6,6,6,7],[6,8,7,8],[6,9,6,10],[6,5,7,5]]}
["PROJECT : Vehha (High Rise Condominium at Huahin) ",null,null,null,"PB",{"$f":"IF(E1=\"\",\"\",COUNTIF($F$9:$F$108,E1))","v":0},null,{"$f":"IF(G1=\"\",\"\",COUNTIF($F$9:$F$108,G1))","v":""},null,null,null,null,null,"ลบรูปทั้งหมด",null,"แทรกรูป After"]
["OWNER    : บริษัท หัวหิน สกาย ลิฟวิ่ง จำกัด ",null,null,null,"Index",{"$f":"IF(E2=\"\",\"\",COUNTIF($F$9:$F$108,E2))","v":0},null,{"$f":"IF(G2=\"\",\"\",COUNTIF($F$9:$F$108,G2))","v":""},null,null,null,null,null,"แทรกรูป Before",null,"แทรกรูป Before + After"]
["CONSULTANT : บริษัท โปรเจ็ค แอลไลแอ็นซ์ จำกัด",null,null,null,"TEKA",{"$f":"IF(E3=\"\",\"\",COUNTIF($F$9:$F$108,E3))","v":0},null,""]
["TITTE       :  Defect Check List Guest Room",null,null,null,null,"",null,"",null,null,null,null,null,"ชื่อรูป"]
["Floor :",null,"Room :",null,null,"",null,{"$f":"IF(G5=\"\",\"\",COUNTIF($F$9:$F$108,G5))","v":""},null,null,"  Inspect Date :"]
[]
["Item","Description","Location","Before (Picture)","Inspector By","Responable","Date Complete",null,"After (Picture)","Status",null,"Remark",null,"ถ่ายก่อน","ถ่ายหลัง",null,"ถ่ายก่อน","ถ่ายหลัง"]
[null,null,null,null,null,null,"Plan","Actual",null,"Pass","Not Pass",null,null,"Before","After",null,"B","A"]
[1,null,null,null,null,null,null,null,null,null,null,null,null,{"$f":"Q9","v":"B (1)"},{"$f":"R9","v":"A (1)"},null,{"$f":"\"B (\"&A9&\")\"","v":"B (1)"},{"$f":"\"A (\"&A9&\")\"","v":"A (1)"}]
[2,null,null,null,null,null,null,null,null,null,null,null,null,{"$f":"Q10","v":"B (2)"},{"$f":"R10","v":"A (2)"},null,{"$f":"\"B (\"&A10&\")\"","v":"B (2)"},{"$f":"\"A (\"&A10&\")\"","v":"A (2)"}]
[3,null,null,null,null,null,null,null,null,null,null,null,null,"B (3)","A (3)",null,"B (3)","A (3)"]
[4,null,null,null,null,null,null,null,null,null,null,null,null,"B (4)","A (4)",null,"B (4)","A (4)"]
[5,null,null,null,null,null,null,null,null,null,null,null,null,"B (5)","A (5)",null,"B (5)","A (5)"]
[6,null,null,null,null,null,null,null,null,null,null,null,null,"B (6)","A (6)",null,"B (6)","A (6)"]
[7,null,null,null,null,null,null,null,null,null,null,null,null,"B (7)","A (7)",null,"B (7)","A (7)"]
[8,null,null,null,null,null,null,null,null,null,null,null,null,"B (8)","A (8)",null,"B (8)","A (8)"]
[9,null,null,null,null,null,null,null,null,null,null,null,null,"B (9)","A (9)",null,{"$f":"\"B (\"&A17&\")\"","v":"B (9)"},{"$f":"\"A (\"&A17&\")\"","v":"A (9)"}]
[10,null,null,null,null,null,null,null,null,null,null,null,null,"B (10)","A (10)",null,"B (10)","A (10)"]
[11,null,null,null,null,null,null,null,null,null,null,null,null,"B (11)","A (11)",null,"B (11)","A (11)"]
[12,null,null,null,null,null,null,null,null,null,null,null,null,"B (12)","A (12)",null,"B (12)","A (12)"]
[13,null,null,null,null,null,null,null,null,null,null,null,null,"B (13)","A (13)",null,"B (13)","A (13)"]
[14,null,null,null,null,null,null,null,null,null,null,null,null,"B (14)","A (14)",null,"B (14)","A (14)"]
[15,null,null,null,null,null,null,null,null,null,null,null,null,"B (15)","A (15)",null,"B (15)","A (15)"]
[16,null,null,null,null,null,null,null,null,null,null,null,null,"B (16)","A (16)",null,"B (16)","A (16)"]
[17,null,null,null,null,null,null,null,null,null,null,null,null,"B (17)","A (17)",null,"B (17)","A (17)"]
[18,null,null,null,null,null,null,null,null,null,null,null,null,"B (18)","A (18)",null,"B (18)","A (18)"]
[19,null,null,null,null,null,null,null,null,null,null,null,null,"B (19)","A (19)",null,"B (19)","A (19)"]
[20,null,null,null,null,null,null,null,null,null,null,null,null,"B (20)","A (20)",null,"B (20)","A (20)"]
[21,null,null,null,null,null,null,null,null,null,null,null,null,"B (21)","A (21)",null,"B (21)","A (21)"]
[22,null,null,null,null,null,null,null,null,null,null,null,null,"B (22)","A (22)",null,"B (22)","A (22)"]
[23,null,null,null,null,null,null,null,null,null,null,null,null,"B (23)","A (23)",null,"B (23)","A (23)"]
[24,null,{"$f":"C31","v":0},null,{"$f":"E31","v":0},null,null,null,null,null,null,null,null,"B (24)","A (24)",null,"B (24)","A (24)"]
[25,null,0,null,0,null,null,null,null,null,null,null,null,"B (25)","A (25)",null,"B (25)","A (25)"]
[26,null,0,null,0,null,null,null,null,null,null,null,null,"B (26)","A (26)",null,"B (26)","A (26)"]
[27,null,0,null,0,null,null,null,null,null,null,null,null,"B (27)","A (27)",null,"B (27)","A (27)"]
[28,null,0,null,0,null,null,null,null,null,null,null,null,"B (28)","A (28)",null,"B (28)","A (28)"]
[29,null,0,null,0,null,null,null,null,null,null,null,null,"B (29)","A (29)",null,"B (29)","A (29)"]
[30,null,0,null,0,null,null,null,null,null,null,null,null,"B (30)","A (30)",null,"B (30)","A (30)"]
[31,null,0,null,0,null,null,null,null,null,null,null,null,"B (31)","A (31)",null,"B (31)","A (31)"]
[32,null,0,null,0,null,null,null,null,null,null,null,null,"B (32)","A (32)",null,"B (32)","A (32)"]
[33,null,0,null,0,null,null,null,null,null,null,null,null,"B (33)","A (33)",null,"B (33)","A (33)"]
[34,null,0,null,0,null,null,null,null,null,null,null,null,"B (34)","A (34)",null,"B (34)","A (34)"]
[35,null,0,null,0,null,null,null,null,null,null,null,null,"B (35)","A (35)",null,"B (35)","A (35)"]
[36,null,0,null,0,null,null,null,null,null,null,null,null,"B (36)","A (36)",null,"B (36)","A (36)"]
[37,null,0,null,0,null,null,null,null,null,null,null,null,"B (37)","A (37)",null,"B (37)","A (37)"]
[38,null,0,null,0,null,null,null,null,null,null,null,null,"B (38)","A (38)",null,"B (38)","A (38)"]
[39,null,0,null,0,null,null,null,null,null,null,null,null,"B (39)","A (39)",null,"B (39)","A (39)"]
[40,null,0,null,0,null,null,null,null,null,null,null,null,"B (40)","A (40)",null,"B (40)","A (40)"]
[41,null,0,null,0,null,null,null,null,null,null,null,null,"B (41)","A (41)",null,"B (41)","A (41)"]
[42,null,0,null,0,null,null,null,null,null,null,null,null,"B (42)","A (42)",null,"B (42)","A (42)"]
[43,null,0,null,0,null,null,null,null,null,null,null,null,"B (43)","A (43)",null,"B (43)","A (43)"]
[44,null,0,null,0,null,null,null,null,null,null,null,null,"B (44)","A (44)",null,"B (44)","A (44)"]
[45,null,0,null,0,null,null,null,null,null,null,null,null,"B (45)","A (45)",null,"B (45)","A (45)"]
[46,null,0,null,0,null,null,null,null,null,null,null,null,"B (46)","A (46)",null,"B (46)","A (46)"]
[47,null,0,null,0,null,null,null,null,null,null,null,null,"B (47)","A (47)",null,"B (47)","A (47)"]
[48,null,0,null,0,null,null,null,null,null,null,null,null,"B (48)","A (48)",null,"B (48)","A (48)"]
[49,null,0,null,0,null,null,null,null,null,null,null,null,"B (49)","A (49)",null,"B (49)","A (49)"]
[50,null,0,null,0,null,null,null,null,null,null,null,null,"B (50)","A (50)",null,"B (50)","A (50)"]
[51,null,0,null,0,null,null,null,null,null,null,null,null,"B (51)","A (51)",null,"B (51)","A (51)"]
[52,null,0,null,0,null,null,null,null,null,null,null,null,"B (52)","A (52)",null,"B (52)","A (52)"]
[53,null,0,null,0,null,null,null,null,null,null,null,null,"B (53)","A (53)",null,"B (53)","A (53)"]
[54,null,0,null,0,null,null,null,null,null,null,null,null,"B (54)","A (54)",null,"B (54)","A (54)"]
[55,null,0,null,0,null,null,null,null,null,null,null,null,"B (55)","A (55)",null,"B (55)","A (55)"]
[56,null,0,null,0,null,null,null,null,null,null,null,null,"B (56)","A (56)",null,"B (56)","A (56)"]
[57,null,0,null,0,null,null,null,null,null,null,null,null,"B (57)","A (57)",null,"B (57)","A (57)"]
[58,null,0,null,0,null,null,null,null,null,null,null,null,"B (58)","A (58)",null,"B (58)","A (58)"]
[59,null,0,null,0,null,null,null,null,null,null,null,null,"B (59)","A (59)",null,"B (59)","A (59)"]
[60,null,0,null,0,null,null,null,null,null,null,null,null,"B (60)","A (60)",null,"B (60)","A (60)"]
[61,null,0,null,0,null,null,null,null,null,null,null,null,"B (61)","A (61)",null,"B (61)","A (61)"]
[62,null,0,null,0,null,null,null,null,null,null,null,null,"B (62)","A (62)",null,"B (62)","A (62)"]
[63,null,0,null,0,null,null,null,null,null,null,null,null,"B (63)","A (63)",null,"B (63)","A (63)"]
[64,null,0,null,0,null,null,null,null,null,null,null,null,"B (64)","A (64)",null,"B (64)","A (64)"]
[65,null,0,null,0,null,null,null,null,null,null,null,null,"B (65)","A (65)",null,"B (65)","A (65)"]
[66,null,0,null,0,null,null,null,null,null,null,null,null,{"$f":"Q74","v":"B (66)"},{"$f":"R74","v":"A (66)"},null,"B (66)","A (66)"]
[67,null,{"$f":"C74","v":0},null,{"$f":"E74","v":0},null,null,null,null,null,null,null,null,"B (67)","A (67)",null,"B (67)","A (67)"]
[68,null,0,null,0,null,null,null,null,null,null,null,null,"B (68)","A (68)",null,"B (68)","A (68)"]
[69,null,0,null,0,null,null,null,null,null,null,null,null,"B (69)","A (69)",null,"B (69)","A (69)"]
[70,null,0,null,0,null,null,null,null,null,null,null,null,"B (70)","A (70)",null,"B (70)","A (70)"]
[71,null,0,null,0,null,null,null,null,null,null,null,null,"B (71)","A (71)",null,"B (71)","A (71)"]
[72,null,0,null,0,null,null,null,null,null,null,null,null,"B (72)","A (72)",null,"B (72)","A (72)"]
[73,null,0,null,0,null,null,null,null,null,null,null,null,"B (73)","A (73)",null,{"$f":"\"B (\"&A81&\")\"","v":"B (73)"},{"$f":"\"A (\"&A81&\")\"","v":"A (73)"}]
[74,null,0,null,0,null,null,null,null,null,null,null,null,"B (74)","A (74)",null,"B (74)","A (74)"]
[75,null,0,null,0,null,null,null,null,null,null,null,null,"B (75)","A (75)",null,"B (75)","A (75)"]
[76,null,0,null,0,null,null,null,null,null,null,null,null,"B (76)","A (76)",null,"B (76)","A (76)"]
[77,null,0,null,0,null,null,null,null,null,null,null,null,"B (77)","A (77)",null,"B (77)","A (77)"]
[78,null,0,null,0,null,null,null,null,null,null,null,null,"B (78)","A (78)",null,"B (78)","A (78)"]
[79,null,0,null,0,null,null,null,null,null,null,null,null,"B (79)","A (79)",null,"B (79)","A (79)"]
[80,null,0,null,0,null,null,null,null,null,null,null,null,"B (80)","A (80)",null,"B (80)","A (80)"]
[81,null,0,null,0,null,null,null,null,null,null,null,null,"B (81)","A (81)",null,"B (81)","A (81)"]
[82,null,0,null,0,null,null,null,null,null,null,null,null,"B (82)","A (82)",null,"B (82)","A (82)"]
[83,null,0,null,0,null,null,null,null,null,null,null,null,"B (83)","A (83)",null,"B (83)","A (83)"]
[84,null,0,null,0,null,null,null,null,null,null,null,null,"B (84)","A (84)",null,"B (84)","A (84)"]
[85,null,0,null,0,null,null,null,null,null,null,null,null,"B (85)","A (85)",null,"B (85)","A (85)"]
[86,null,0,null,0,null,null,null,null,null,null,null,null,"B (86)","A (86)",null,"B (86)","A (86)"]
[87,null,0,null,0,null,null,null,null,null,null,null,null,"B (87)","A (87)",null,"B (87)","A (87)"]
[88,null,0,null,0,null,null,null,null,null,null,null,null,"B (88)","A (88)",null,"B (88)","A (88)"]
[89,null,0,null,0,null,null,null,null,null,null,null,null,"B (89)","A (89)",null,"B (89)","A (89)"]
[90,null,0,null,0,null,null,null,null,null,null,null,null,"B (90)","A (90)",null,"B (90)","A (90)"]
[91,null,0,null,0,null,null,null,null,null,null,null,null,"B (91)","A (91)",null,"B (91)","A (91)"]
[92,null,0,null,0,null,null,null,null,null,null,null,null,"B (92)","A (92)",null,"B (92)","A (92)"]
[93,null,0,null,0,null,null,null,null,null,null,null,null,"B (93)","A (93)",null,"B (93)","A (93)"]
[94,null,0,null,0,null,null,null,null,null,null,null,null,"B (94)","A (94)",null,"B (94)","A (94)"]
[95,null,0,null,0,null,null,null,null,null,null,null,null,"B (95)","A (95)",null,"B (95)","A (95)"]
[96,null,0,null,0,null,null,null,null,null,null,null,null,"B (96)","A (96)",null,"B (96)","A (96)"]
[97,null,0,null,0,null,null,null,null,null,null,null,null,"B (97)","A (97)",null,"B (97)","A (97)"]
[98,null,0,null,0,null,null,null,null,null,null,null,null,"B (98)","A (98)",null,"B (98)","A (98)"]
[99,null,0,null,0,null,null,null,null,null,null,null,null,"B (99)","A (99)",null,"B (99)","A (99)"]
[100,null,0,null,0,null,null,null,null,null,null,null,null,"B (100)","A (100)",null,"B (100)","A (100)"]

{"sheet":"Data","index":2,"n_rows":39,"n_cols":14,"rows_kept":39,"cut":false,"hidden":false,"merged":[]}
[]
[null,1,"  Fire  Protection ยังไม่ได้ติดตั้ง,",null,"A","  ผนัง, เสา ยังไม่ฉาบปูน,",null,1,"เก็บสีขอบไม้ให้เรียบร้อย"]
[null,2,"  Conduit Lighting & Power ยังไม่ได้ติดตั้ง,",null,"B","  ฝ้าเพดาน,",null,null,"เก็บสีขอบฝ้าเพดานให้เรียบร้อย"]
[null,3,"  Lighting Fixture ยังไม่ได้ติดตั้ง,",null,"C","  เสาและคาน ยังไม่ได้หุ้ม,",null,null,"เก็บสีขอบวงกบให้ให้เรียบร้อย"]
[null,4,"  Smoke Detector ยังไม่ได้ติดตั้ง,",null,"D","  ตัด bolt ให้สูงจากพื้น 2.5 ซม.,",null,null,"ตรวจสอบวอลลเปเปอร์ทั้งห้องที่พอง"]
[null,5,"  Emergency Light ยังไม่ได้ติดตั้ง,",null,"E","  ทาสีกันสนิม,",null,null,"เก็บสีขอบบริเวณรอบบานพับให้เรียบร้อย",null,null,null,null,"ปรับบานตู้"]
[null,6,"  Outlet ยังไม่ได้ติดตั้ง,",null,"F","  ผนังยังไม่ติดตั้ง,",null,null,null,null,null,null,null,"ปรับลิ้นชัก"]
[null,7,"  ยังไม่ร้อยสายไฟ,",null,"G","  ปิดช่องว่างระหว่างผนังกับพื้น,",null,null,"ลิ้นชักฝืด ให้ปรับลิ้นชักใหม่"]
[null,8,"  รื้อท่อเก่าออก ติดตั้งไม่ให้เห็นท่อ,",null,"H","  เก็บงานผิวพื้นให้เรียบก่อนทำ Finishing,",null,null,"เก็บสีและยิงซิลิโคนรอยต่อ Wallpaper กับ ขอบไม้ ตรวจสอบทุกจุด"]
[null,9,"  ท่อ Fire  Protection ยังไม่แล้วเสร็จ,",null,"I","  งานเทพื้นปรับระดับยังไม่แล้วเสร็จ,",null,null,"เก็บสีรอบปุ่มปรับระดับ"]
[null,10,"  งาน Air ยังไม่แล้วเสร็จ,",null,"J","  งาน Stage ยังไม่แล้วเสร็จ,"]
[null,11,"  ปิดฝาราง Wireway",null,"K","  งานอุปกรณ์ประตู ยังไม่ติดตั้ง,",null,null,"เก็บสีและซิลิโคนรอยต่อ Wallpaper กับขอบไม้"]
[null,12,"  หัวสปริงเกอร์ ยังไม่ได้ติดตั้ง,",null,"L","  แก้ไขงานผนัง,",null,null,"เก็บสีและซิลิโคนรอยต่อพื้นกับขอบไม้"]
[null,13,"  ปิดฝา box,",null,"M","  งานโครงสร้าง ยังไม่แล้วเสร็จ,",null,null,"เก็บสีไม้ลิ้นชัก"]
[null,14,"  รื้อฉนวน PVC ออก,",null,"N","  งานก่ออิฐ ยังไม่แล้วเสร็จ,",null,null,"เก็บสีรอยต่อไม้"]
[null,15,"ท่อ Fire Protection ขว้างทางเดิน",null,"O","  งานติดตั้งสุขภัณฑ์  ยังไม่แล้วเสร็จ,",null,null,"ติดตั้งผ้าบุกรอบเฟรมภาพเหนือที่นอน"]
[null,16,null,null,"P","  แก้ไขงานกระเบื้อง,",null,null,"แก้ไข Wallpaper ที่พองหรือขาด"]
[null,null,null,null,"Q","  ประตู ยังไม่ติดตั้ง,",null,null,"ปรับบานตู้ไม่ให้ติดลิ้นชักขณะเปิดใช้งาน"]
[null,null,null,null,"R","  แต่งรอยต่อท้องพื้นให้เรียบ ก่อนทาสี,",null,null,"เก็บสีในตู้ Minibar"]
[null,null,null,null,"S","  งานทาสี,",null,null,"เก็บซิลิโคนรอบกระจกเงา"]
[null,null,null,null,"T","  ราวกันตกยังไม่ติตดตั้ง,",null,null,"เก็บสีเพดาน"]
[null,null,null,null,"U","  งานบันได ยังไม่แล้วเสร็จ,",null,null,"เก็บสี RAG ไม้"]
[null,null,null,null,"V","เก็บงานผิวผนังให้เรียบ",null,null,"ติดตั้งกระจกเงา"]
[null,null,null,null,"W","เก็บงานผิวฝ้าให้เรียบ",null,null,"ติดตั้ง Switch ในตู้เสื้อผ้า"]
[null,null,null,null,"X","แก้ไขงานกระเบื้องร่อน",null,null,"ติดตั้งราวแขวนผ้าในตู้เสื้อผ้า"]
[null,null,null,null,"Y",null,null,null,"เก็บสีและซิลิโคนรอยต่อแผ่นหินกับขอบไม้"]
[null,null,null,null,"Z",null,null,null,"เก็บสีขอบไม้"]
[null,null,null,null,null,null,null,null,"เก็บสีและซิลิโคนรอยต่อขอบไม้"]
[null,null,"เก็บงานสีซับวงกบ",null,null,null,null,null,"เก็บสีและซิลิโคนรอยต่อ Wallpaper รอบ Switch"]
[null,null,"เก็บงานสี ผนัง",null,null,null,null,null,"ติดตั้ง Wallpaper เหนือที่นอน"]
[null,null,"เก็บงานสี ฝ้าเพดาน"]
[null,null,"เก็บงานสี ไม้"]
[null,null,"Dap รอยต่อไม้ กับ ผนัง"]
[]
[null,null,"เก็บงานสี ผนัง และ ฝ้าเพดาน"]
[]
[null,null,"ยาแนว"]
[]
[null,null,"Wallpaper พอง"]